Cogmind - Beta 10.2 @@@ ROGUE MODE // 2022.01.02 @ 00:49:34 Player: tangiers Result: Destroyed by S-27 Virus with Autogun Performance ------------- Evolutions (3) 1500 Regions Visited (8) 1600 Robots Destroyed (5) 25 Value Destroyed (263) 263 Prototype IDs (25) 500 Alien Tech Used (0) 0 Bonus (934) 934 TOTAL SCORE: 4822 Bonus ------- Pacifist 634 Aligned with FarCom 300 Cogmind --------- Core Integrity 0/700 Matter 225/300 Energy 99/100 System Corruption 0% Temperature Cool (0) Movement Core (50) Location -7/Factory Parts ------- > --- POWER (1) -------- (None) > --- PROPULSION (5) --- (None) > --- UTILITY (5) ------ Advanced Signal Interpreter Advanced Signal Interpreter Advanced Signal Interpreter Improved Melee Analysis Suite Improved Utility Shielding > --- WEAPON (2) ------- (None) > --- INVENTORY (4) ---- Improved Field Recycling Unit (0) Mass Driver Field Lobotomy Kit Plasma Cutter Peak State ------------ > --- POWER ------------ Heavy Deuterium Engine > --- PROPULSION ------- Cesium-ion Thruster > --- UTILITY ---------- Coolant Injector Advanced Signal Interpreter Advanced Signal Interpreter Advanced Signal Interpreter Improved Melee Analysis Suite > --- WEAPON ----------- Flak Gun > --- INVENTORY -------- Improved Utility Shielding Mass Driver Field Lobotomy Kit Plasma Cutter [Rating: 31] Favorites ----------- Power Light Ion Engine Engine Light Ion Engine Propulsion Light Treads Treads Light Treads Leg Aluminum Leg Flight Unit Cesium-ion Thruster Utility Light Armor Plating Device Thief Drone Bay Storage Small Storage Unit Processor Improved Melee Analysis Suite Hackware Hacking Suite Protection Light Armor Plating Weapon Flak Gun Energy Gun Medium Laser Ballistic Gun Flak Gun Special Melee Weapon Improved Datajack Build | -11 -10 -10 -10 -9 -8 -7 -7 -7 ------- Run | Scr Mat Min Exi Min Mat Fac Was Fac Slots Evolved 6 | . . . . . 4 2 . . Power . | . . . . . . . . . Propulsion 3 | . . . . . 2 1 . . Utility 3 | . . . . . 2 1 . . Weapon . | . . . . . . . . . Parts Attached 23 | . 1 1 2 . 1 3 2 13 Power 1 | . . . . . . . . 1 Engine 1 | . . . . . . . . 1 Core . | . . . . . . . . . Reactor . | . . . . . . . . . Propulsion 3 | . . 1 . . . 1 . 1 Treads 2 | . . 1 . . . 1 . . Leg . | . . . . . . . . . Wheel . | . . . . . . . . . Hover . | . . . . . . . . . Flight 1 | . . . . . . . . 1 Utility 16 | . 1 . 2 . 1 1 2 9 Device 5 | . . . 2 . . 1 1 1 Storage 1 | . . . . . . . . 1 Processor 5 | . . . . . . . . 5 Hackware 2 | . . . . . 1 . 1 . Protection 3 | . 1 . . . . . . 2 Artifact . | . . . . . . . . . Weapon 3 | . . . . . . 1 . 2 Energy Gun . | . . . . . . . . . Energy Cannon . | . . . . . . . . . Ballistic Gun 2 | . . . . . . 1 . 1 Ballistic Cannon . | . . . . . . . . . Launcher . | . . . . . . . . . Special Weapon . | . . . . . . . . . Impact Weapon . | . . . . . . . . . Slashing Weapon . | . . . . . . . . . Piercing Weapon . | . . . . . . . . . Special Melee Weapon 1 | . . . . . . . . 1 Unidentified Prototypes 2 | . . . 1 . . . . 1 Parts Lost 8 | . . . . . . 4 2 2 Power . | . . . . . . . . . Propulsion 3 | . . . . . . 2 . 1 Utility 4 | . . . . . . 2 2 . Weapon 1 | . . . . . . . . 1 Highest Loss Streak 2 | . . . . . . 2 2 2 Average Slot Usage (%) 29 | . 8 23 39 42 20 28 7 29 Treads 8 | . . 9 14 14 9 11 . . Device 6 | . . . 11 14 . 5 6 . Processor 3 | . . . . . . . . 17 Protection 8 | . 8 14 14 14 9 5 . 2 Naked Turns 73 | . 25 . . . . . 41 7 Heaviest Build 10 | 10 10 3 7 5 5 3 4 6 Greatest Support 42 | 20 20 3 3 3 3 42 3 6 Greatest Overweight (x) 2 | . . . 2 1 1 . 1 1 Average Overweight (x) . | . . . 1 1 . . . . Largest Inventory Capacity 6 | 6 6 4 4 4 4 4 4 6 Average Capacity 4 | 6 4 4 4 4 4 4 4 4 Most Carried 6 | 6 6 4 4 4 4 4 3 4 Average Carried 3 | 6 4 3 3 4 4 3 2 3 Final Capacity 6 | 6 4 4 4 4 4 4 4 4 Final Carried 6 | 6 4 4 4 4 4 3 3 4 Class Distribution -------------------- 100% | Mutant Dominant Class ---------------- Mutant | -10/Materials Mutant | -10/Mines Mutant | -10/Exiles Mutant | -9/Mines Mutant | -8/Materials Mutant | -7/Factory Mutant | -7/Waste Mutant | -7/Factory Resources | -11 -10 -10 -10 -9 -8 -7 -7 -7 ----------- Run | Scr Mat Min Exi Min Mat Fac Was Fac Matter Collected 351 | 200 . 28 10 10 . 33 . 70 Remotely . | . . . . . . . . . Salvage Created 168 | . . . . . . 108 . 60 Parts 6 | . . . . . . 4 . 2 Haulers Intercepted . | . . . . . . . . . Recyclers Shooed 2 | . . 1 . . . 1 . . Parts Field Recycled . | . . . . . . . . . Retrieved Matter . | . . . . . . . . . Parts Self-Destructed . | . . . . . . . . . Prevented . | . . . . . . . . . Kills | -11 -10 -10 -10 -9 -8 -7 -7 -7 ------- Run | Scr Mat Min Exi Min Mat Fac Was Fac Combat Hostiles Destroyed 3 | . . . . . . 3 . . Melee 1 | . . . . . . 1 . . AOE 2 | . . . . . . 2 . . Classes Destroyed 3 | . . . . . . 3 . . Recycler 2 | . . . . . . 1 . 1 Swarmer 2 | . . . . . . 2 . . Grunt 1 | . . . . . . 1 . . Best Kill Streak 3 | . . . . . . 3 . 1 Combat Bots Only 2 | . . . . . . 2 . . Max Kills in Single Turn 2 | . . . . . . 2 . 1 Gunslinging . | . . . . . . . . . Exploded 2 | . . . . . . 2 . . Melee 1 | . . . . . . 1 . . Uniques/NPCs Destroyed . | . . . . . . . . . Combat | -11 -10 -10 -10 -9 -8 -7 -7 -7 -------- Run | Scr Mat Min Exi Min Mat Fac Was Fac Damage Taken 1318 | . 29 3 . . . 540 215 531 Core 710 | . 10 . . . . 153 215 332 Absorbed by Shields . | . . . . . . . . . Core Remaining (%) 98 | 100 . . . 96 100 . . . Volleys Fired 3 | . . . . . . 2 . 1 Largest 1 | . . . . . . 1 . 1 Hottest 28 | . . . . . . 28 . 28 Shots Fired 3 | . . . . . . 2 . 1 Gun 3 | . . . . . . 2 . 1 Cannon . | . . . . . . . . . Launcher . | . . . . . . . . . Special . | . . . . . . . . . Kinetic 3 | . . . . . . 2 . 1 Thermal . | . . . . . . . . . Explosive . | . . . . . . . . . Electromagnetic . | . . . . . . . . . Robot Hit Streak . | . . . . . . . . . Robot Miss Streak . | . . . . . . . . . Penetration Max . | . . . . . . . . . Secondary Targets . | . . . . . . . . . Shots Hit Robots . | . . . . . . . . . Core Hits 10 | . 1 1 . . . 7 . 1 Critical Hits . | . . . . . . . . . Critical Kills . | . . . . . . . . . Critical Parts Destroyed . | . . . . . . . . . Melee Attacks . | . . . . . . . . . Impact . | . . . . . . . . . Slashing . | . . . . . . . . . Piercing . | . . . . . . . . . Sneak Attacks . | . . . . . . . . . Combat Hostiles . | . . . . . . . . . Follow-up Attacks . | . . . . . . . . . Damage Inflicted 448 | . 9 6 . . . 416 . 17 Guns . | . . . . . . . . . Cannons . | . . . . . . . . . Explosions 398 | . . . . . . 398 . . Melee . | . . . . . . . . . Ramming 50 | . 9 6 . . . 18 . 17 Kinetic . | . . . . . . . . . Thermal 398 | . . . . . . 398 . . Explosive . | . . . . . . . . . Electromagnetic . | . . . . . . . . . Impact . | . . . . . . . . . Slashing . | . . . . . . . . . Piercing . | . . . . . . . . . Highest Corruption . | . . . . . . . . . Average Corruption . | . . . . . . . . . Corruption Purged . | . . . . . . . . . Overload Shots . | . . . . . . . . . Overflow Damage 75 | . . . . . . 75 . . Projectiles . | . . . . . . . . . Explosions 75 | . . . . . . 75 . . Melee . | . . . . . . . . . Knockbacks 1 | . 1 . . . . . . . Impact 1 | . 1 . . . . . . . Kinetic . | . . . . . . . . . Secondary . | . . . . . . . . . Self-Inflicted Damage 76 | . 4 3 . . . 61 . 8 Shots 1 | . . . . . . 1 . . Rammed 14 | . 1 1 . . . 11 . 1 Targets Rammed 16 | . 1 1 . . . 13 . 1 Kicked . | . . . . . . . . . Crushed 2 | . . . . . . 2 . . Highest Temperature . | . . . . . . . . . Average Temperature . | . . . . . . . . . Received Heat Transfer 60 | . 15 . . . . 45 . . Siege Activations . | . . . . . . . . . Robots Corrupted . | . . . . . . . . . Combat Hostiles . | . . . . . . . . . Parts Fried . | . . . . . . . . . Impact Corruptions . | . . . . . . . . . Robots Melted . | . . . . . . . . . Combat Hostiles . | . . . . . . . . . Parts Melted . | . . . . . . . . . Heat Transferred 250 | . . . . . . 250 . . Parts Sabotaged . | . . . . . . . . . Parts Stolen . | . . . . . . . . . Parts Stripped . | . . . . . . . . . Power Chain Reactions . | . . . . . . . . . Missiles Intercepted . | . . . . . . . . . Alert | -11 -10 -10 -10 -9 -8 -7 -7 -7 ------- Run | Scr Mat Min Exi Min Mat Fac Was Fac Peak Influence 525 | . 30 11 . . 30 525 182 211 Initial 182 | . . 11 . . . 13 182 71 Average 82 | . 4 11 . . . 189 137 124 Maximum Alert Level 2 | . . . . . . 2 . 1 Low Security (%) 90 | 100 100 100 . 100 100 63 100 90 Level 1 5 | . . . . . . 14 . 9 Level 2 4 | . . . . . . 21 . . Level 3 . | . . . . . . . . . Level 4 . | . . . . . . . . . Level 5 . | . . . . . . . . . High Security . | . . . . . . . . . Max Security . | . . . . . . . . . Squads Dispatched 6 | . 1 1 . . . 3 . 1 Investigation 6 | . 1 1 . . . 3 . 1 Extermination . | . . . . . . . . . Reinforcement . | . . . . . . . . . Assault . | . . . . . . . . . Garrison . | . . . . . . . . . Intercept . | . . . . . . . . . Construction Impeded . | . . . . . . . . . Haulers Reinforced . | . . . . . . . . . Stealth | -11 -10 -10 -10 -9 -8 -7 -7 -7 --------- Run | Scr Mat Min Exi Min Mat Fac Was Fac Distress Signals 4 | . 1 . . . 2 1 . . Communications Jammed . | . . . . . . . . . Distress Signals . | . . . . . . . . . Times Spotted 51 | . 5 2 . . 5 17 6 16 Peak Tracking Total 12 | . 7 2 . . 12 8 6 10 Tactical Retreats 5 | . . . . . . 3 . 2 Traps | -11 -10 -10 -10 -9 -8 -7 -7 -7 ------- Run | Scr Mat Min Exi Min Mat Fac Was Fac Traps Triggered 4 | . 1 . . . . 3 . . Indirectly . | . . . . . . . . . Trap Hack Attempts . | . . . . . . . . . Triggered . | . . . . . . . . . Disarmed . | . . . . . . . . . Reprogrammed . | . . . . . . . . . Reused . | . . . . . . . . . Traps Extracted . | . . . . . . . . . Installed . | . . . . . . . . . Triggered . | . . . . . . . . . Machines | -11 -10 -10 -10 -9 -8 -7 -7 -7 ---------- Run | Scr Mat Min Exi Min Mat Fac Was Fac Machines Disabled 15 | . . . . . . 15 . . Max in Single Turn 15 | . . . . . . 15 . . Machines Sabotaged . | . . . . . . . . . Garrisons Compromised . | . . . . . . . . . Overloaded Fab Kills . | . . . . . . . . . Fab Network Shutdowns . | . . . . . . . . . Hacking | -11 -10 -10 -10 -9 -8 -7 -7 -7 --------- Run | Scr Mat Min Exi Min Mat Fac Was Fac Machines Accessed 14 | . 2 2 1 . . 3 . 6 Terminals 7 | . 2 . . . . 1 . 4 Fabricators 2 | . . . . . . 1 . 1 Repair Stations 2 | . . . . . . 1 . 1 Recycling Units . | . . . . . . . . . Scanalyzers . | . . . . . . . . . Garrison Access . | . . . . . . . . . Total Hacks 25 | . 4 2 1 . . 3 . 15 Successful 9 | . 1 2 1 . . 1 . 4 Failed 16 | . 3 . . . . 2 . 11 Catastrophic 2 | . 1 . . . . . . 1 Database Lockouts . | . . . . . . . . . Manual 9 | . 4 . 1 . . 2 . 2 Terminals 16 | . 4 . . . . 1 . 11 Fabricators 3 | . . . . . . 1 . 2 Repair Stations 3 | . . . . . . 1 . 2 Recycling Units . | . . . . . . . . . Scanalyzers . | . . . . . . . . . Garrison Access . | . . . . . . . . . Terminal Hacks 6 | . 1 2 1 . . . . 2 Part Schematic 1 | . 1 . . . . . . . Open Door 2 | . . 2 . . . . . . Branch Access Points 1 | . . . . . . . . 1 Unreport Threat 1 | . . . . . . . . 1 EX-Prototype ID Bank 1 | . . . 1 . . . . . Fabricator Hacks 1 | . . . . . . . . 1 Load Schematic 1 | . . . . . . . . 1 Repair Station Hacks . | . . . . . . . . . Recycling Unit Hacks . | . . . . . . . . . Scanalyzer . | . . . . . . . . . Garrison Access Hacks . | . . . . . . . . . Unauthorized Hacks 2 | . . . . . . 1 . 1 Terminals 1 | . . . . . . . . 1 Assimilate 1 | . . . . . . . . 1 Fabricators 1 | . . . . . . 1 . . Download 1 | . . . . . . 1 . . Repair Stations . | . . . . . . . . . Recycling Units . | . . . . . . . . . Scanalyzers . | . . . . . . . . . Garrison Access . | . . . . . . . . . Data Cores Recovered . | . . . . . . . . . Used . | . . . . . . . . . Hacking Detections 9 | . 2 . . . . 1 . 6 Full Trace Events 1 | . . . . . . . . 1 Feedback Events . | . . . . . . . . . Feedback Blocked . | . . . . . . . . . Robot Schematics Acquired . | . . . . . . . . . Robots Built . | . . . . . . . . . Matter . | . . . . . . . . . Time . | . . . . . . . . . Total Robot Build Rating . | . . . . . . . . . Part Schematics Acquired 1 | . 1 . . . . . . . Parts Built . | . . . . . . . . . Matter . | . . . . . . . . . Time . | . . . . . . . . . Total Part Build Rating . | . . . . . . . . . Parts Repaired . | . . . . . . . . . Time . | . . . . . . . . . Parts Recycled . | . . . . . . . . . Recycled Matter . | . . . . . . . . . Retrieved Matter . | . . . . . . . . . Retrieved Components . | . . . . . . . . . Parts Scanalyzed . | . . . . . . . . . Part Schematics Acquired . | . . . . . . . . . Parts Damaged . | . . . . . . . . . Bothacking | -11 -10 -10 -10 -9 -8 -7 -7 -7 ------------ Run | Scr Mat Min Exi Min Mat Fac Was Fac Used RIF Installer . | . . . . . . . . . Robots Hacked . | . . . . . . . . . Non-combat . | . . . . . . . . . Combat . | . . . . . . . . . Robot Hacks Applied . | . . . . . . . . . Relay Couplers Released . | . . . . . . . . . Robots Rewired . | . . . . . . . . . Allies Hacked . | . . . . . . . . . Hacks Repelled . | . . . . . . . . . Allies | -11 -10 -10 -10 -9 -8 -7 -7 -7 -------- Run | Scr Mat Min Exi Min Mat Fac Was Fac Total Allies 1 | . . . . . . . . 1 Largest Group 1 | . . . . . . . . 1 Highest-Rated Group 10 | . . . . . . . . 10 Highest-Rated Ally 10 | . . . . . . . . 10 Total Orders . | . . . . . . . . . Ally Attacks 19 | . . . . . . . 19 . Total Damage 67 | . . . . . . . 67 . Kills . | . . . . . . . . . Allies Corrupted . | . . . . . . . . . Allies Melted . | . . . . . . . . . Intel | -11 -10 -10 -10 -9 -8 -7 -7 -7 ------- Run | Scr Mat Min Exi Min Mat Fac Was Fac Robot Analysis Total . | . . . . . . . . . Derelict Logs Recovered 2 | . . 1 . 1 . . . . Drone Launches 5 | . . . . . . . 5 . Drone Recoveries 2 | . . . . . . . 2 . Exploration | -11 -10 -10 -10 -9 -8 -7 -7 -7 ------------- Run | Scr Mat Min Exi Min Mat Fac Was Fac Turns Passed 1686 | 12 75 180 392 224 114 269 111 309 Spaces Moved 2343 | 11 140 337 366 191 113 471 145 569 Core 1973 | . 139 337 366 191 113 468 145 214 Treads 3 | . . . . . . 3 . . Legs 12 | 11 1 . . . . . . . Wheels . | . . . . . . . . . Hover . | . . . . . . . . . Flight 355 | . . . . . . . . 355 Fastest Speed 40 | 120 50 50 50 100 50 50 50 40 Average Speed 62 | 120 50 50 105 100 52 50 53 44 Slowest Speed 152 | 120 120 50 150 100 100 152 100 100 Overloaded Moves . | . . . . . . . . . Propulsion Burnouts . | . . . . . . . . . Robots Hopped 1 | . . . . . . . . 1 Cave-ins Triggered . | . . . . . . . . . Exploration Rate (%) 41 | 2 32 77 69 55 10 21 80 24 Regions Visited 8 Branch Regions 3 Pre-discovered Areas 2 | . . 1 . 1 . . . . Known Exits Taken . | . . . . . . . . . Unknown Exits Taken 6 | 1 1 1 1 1 1 . . . Scrap Searched 3 | . . 2 . 1 . . . . Spaces Dug . | . . . . . . . . . Terrain Destroyed 39 | . . . . . . 39 . . Melee . | . . . . . . . . . Projectile . | . . . . . . . . . AOE 39 | . . . . . . 39 . . Terrain Rammed . | . . . . . . . . . Walls Destroyed . | . . . . . . . . . Machines Disabled . | . . . . . . . . . Actions | -11 -10 -10 -10 -9 -8 -7 -7 -7 --------- Run | Scr Mat Min Exi Min Mat Fac Was Fac Total 2557 | 10 143 349 373 224 166 494 177 621 Wait 148 | . . 2 . 34 52 2 29 29 Move 2334 | 10 139 336 365 190 112 471 144 567 Hop 1 | . . . . . . . . 1 Pick Up 13 | . 1 5 3 . . 1 1 2 Fast Attach 16 | . 1 . . . 1 2 1 11 Attach 6 | . . 1 1 . . 1 1 2 Detach 3 | . . . . . . 1 . 2 Swap 1 | . . . 1 . . . . . Drop 16 | . 1 4 3 . 1 1 1 5 Fire 3 | . . . . . . 2 . 1 Melee . | . . . . . . . . . Ram 6 | . 1 1 . . . 3 . 1 Kick . | . . . . . . . . . Crush 10 | . . . . . . 10 . . Escape Stasis . | . . . . . . . . . Rewire . | . . . . . . . . . Trap . | . . . . . . . . . Miscellaneous . | . . . . . . . . . Route ------- -11/Scrapyard -10/Materials -10/Mines (discovered 3 exits: [*Mat x2] / *Exi) -10/Exiles -9/Mines -8/Materials -7/Factory -7/Waste -7/Factory (discovered 5 exits: [*Fac] / Sto x2 / Low x2) History --------- Turn | Location | Event 1 | -11/Scrapyard | Discovered new exit (range 3) 13 | -11/Scrapyard | Entered Materials 15 | -10/Materials | Released all parts (6) 70 | -10/Materials | Discovered new exit (range 6) 88 | -10/Materials | Entered Mines 99 | -10/Mines | Discovered new exit (range 14) 109 | -10/Mines | Met a Derelict shopkeep closing up shop 163 | -10/Mines | Assembled infested the area 193 | -10/Mines | Found the Drone Emporium 196 | -10/Mines | Found Prototype Device 222 | -10/Mines | Discovered new exit (range 11) 258 | -10/Mines | Learned location of Mines (-9) 266 | -10/Mines | Discovered new exit (range 5) 268 | -10/Mines | Entered Exiles 282 | -10/Exiles | Met 8R-AWN 290 | -10/Exiles | Met EX-HEX 303 | -10/Exiles | Met EX-BIN 312 | -10/Exiles | Build established: Mutant 332 | -10/Exiles | Aligned with FarCom system 333 | -10/Exiles | Given EX-Vault access code 346 | -10/Exiles | Opened EX-Vault 348 | -10/Exiles | Identified Thief Drone Bay 354 | -10/Exiles | Found Field Lobotomy Kit 397 | -10/Exiles | Found PSU Rigger 426 | -10/Exiles | Warned to stay clear of 0b10 Research branches 471 | -10/Exiles | Met EX-DEC 650 | -10/Exiles | Discovered new exit (range 10) 660 | -10/Exiles | Stole two prototypes: PSU Rigger, Field Lobotomy Kit 660 | -10/Exiles | Entered Mines 692 | -9/Mines | Received a Rocket Launcher from a helpful Derelict 729 | -9/Mines | Learned location of Zion (-6) 797 | -9/Mines | Met a Derelict bent on vengeance 876 | -9/Mines | Discovered new exit (range 8) 884 | -9/Mines | Entered Materials 884 | -8/Materials | Evolved 4 slots: Propulsion x2, Utility x2 992 | -8/Materials | Discovered new exit (range 11) 998 | -8/Materials | Entered Factory 998 | -7/Factory | Evolved 2 slots: Propulsion x1, Utility x1 1000 | -7/Factory | FarCom data flow suspended 1267 | -7/Factory | Sucked down chute 1267 | -7/Factory | Entered Waste 1279 | -7/Waste | Spotted C-40 Crusher 1325 | -7/Waste | Spotted C-40 Crusher 1328 | -7/Waste | Crushed by Compactor (1 part destroyed) 1345 | -7/Waste | Spotted C-40 Crusher 1349 | -7/Waste | Spotted C-40 Crusher 1350 | -7/Waste | Spotted C-40 Crusher 1353 | -7/Waste | Spotted C-40 Crusher 1355 | -7/Waste | Crushed by Compactor (1 part destroyed) 1370 | -7/Waste | Discovered new exit (range 13) 1371 | -7/Waste | Core integrity fell below 50% 1378 | -7/Waste | Entered Factory 1627 | -7/Factory | Identified exit to Storage 1627 | -7/Factory | Identified exit to Lower Caves 1639 | -7/Factory | Discovered new exit (range 13) 1673 | -7/Factory | Core integrity fell below 20% 1687 | -7/Factory | Destroyed by S-27 Virus with Autogun Last Messages --------------- >>Access(Branch) Found 4 branch access points: (88,116) Storage (122,190) Storage (157,144) Lower Caves (25,136) Lower Caves Map updated. >>Alert(Purge) Purged threat record, alert level lowered. 01639_ Connecting with Terminal... 01639_ EXIT=FOUND 01652_ Acquired Prototype Engine. 01652_ Identified Hvy. Deuterium Engine. 01653_ Dropped Hvy. Deuterium Engine. 01654_ Dropped Coolant Injector. 01656_ Acquired Imp. Field Recycling Unit. 01660_ K-01 Serf cleans the Pressure Siphon. 01661_ Drone sends a signal. 01667_ Cesium-ion Thruster destroyed. 01674_ Flak Gun destroyed. Map ----- +----------------------------------------------------+ | ????# """"""""" #????????????????????????????? | | ????# #????????????????????????????? | | ????# [ #????????????????????????????? | | ????##########+##########????????????????????????? | | ???????????#] [ #????????????????????????? | | ???????????# #????????????????????????? | | ???????????# "" "" #????????????????????????? | | ???????????# "" "" #????????????????????????? | | ???????????# """ """ #????????????????????????? | | ???????????# """ """ +????????????????????????? | | ???????????# """ """ #? """"?????????????????? | | ???????????# #? ???????????????? | | ???????????# +? ??????????????? | | ???????????# #? ?????????????? | | ???????????# s #? ?????????????? | | ???????????# #? k ?????????????? | | ???????????######/#######? ?????????????? | | ????????????????#s######## ?????????????? | | ????????????????# ?????????????? | | ????????????????+ ?????????????? | | ????????????????# ##??????????????????? | | ????????????????# #???????????????????? | | ????????????????# #???????????????????? | | ????????????????# #???????????????????? | | ????????????????# #???????????????????? | | ????????? u @ #???????????????????? | | ????????? #???????????????????? | | ?????????""" ##???????????????????? | | ??????????Y w""""""""" #????????????????????? | | ??????????"" #????????????????????? | | ?????????? """"""""" #????????????????????? | | ?????????? #????????????????????? | | ?????????? ? #????????????????????? | | ??????????? ??? ### #????????????????????? | | ???????????????????? ??? #????????????????????? | | ??????????????????????##???+#????????????????????? | | ?????????????????????????????????????????????????? | | ?????????????????????????????????????????????????? | | ???????>?????????????????????????????????????????? | | ?????????????????????????????????????????????????? | | ?????????????????????????????????????????????????? | | ?????????????????????????????????????????????????? | | ?????????????????????????????????????????????????? | | ?????????????????????????????????????????????????? | | ?????????????????????????????????????????????????? | | ?????????????????????????????????????????????????? | | ?????????????????????????????????????????????????? | | ?????????????????????????????????????????????????? | | ?????????????????????????????????????????????????? | | ?????????????????????????????????????????????????? | +----------------------------------------------------+ Best States ------------- Heat Dissipation 34 Energy Generation 10 Energy Capacity 125 Matter Stores 300 Matter Capacity 300 Sight Range 16 Terrain Scan Density 10 Armor Coverage 150 Utility Shielding 66 Evasion (%) 62 Recoil Reduction 2 Offensive Hacking 10 Defensive Hacking 12 Item Schematics ----------------- Hcp. Storage Unit | -10/Materials | Hacked Robot Schematics ------------------ None Fabricated ------------ Nothing Alien Tech Used ----------------- None Achievements -------------- None Challenges ------------ None Game ------ Seed MetafiberTerrabombDevice Manual? 0 Play Time 00:25:40 Cumulative 308.5 hours Start 2022.01.01 @ 21:29:34 End 2022.01.02 @ 00:49:34 Sessions 1 Manual Loads 0 Difficulty Rogue Special Mode None Game No. 234 Rogue 234 Adventurer 0 Explorer 0 Win Type - Total 6 Types 5/0/1/0/0/0/0/0/0 Lore% 54 Gallery% 76 Achievement% 62 Wizard Run 0 Options --------- ASCII 0 Keyboard 0 Movement Numpad Keybinds 0 Fullscreen 2 Font 18/TerminusBold Map View 76x50 Tactical HUD 1 Map Filters NONE Filters NONE Steam 1 RUN: 6495bdeb-4040-4994-bc92-7a8978ef3765